[Event "*** Titled Tuesday Blitz"]
[Site "Chess.com"]
[Date "2018.07.03"]
[Round "8"]
[White "attack2mateU"]
[Black "meoluoi91"]
[Result "0-1"]
[WhiteElo "2650"]
[BlackElo "2520"]
[TimeControl "180+2"]
[EndTime "14:44:59 PDT"]
[Termination "meoluoi91 won by resignation"]

1. e4 {[%clk 0:03:01.9]} 1... c6 {[%clk 0:03:00.7]} 2. d4 {[%clk 0:03:02.1]}
2... d5 {[%clk 0:03:01.8]} 3. e5 {[%clk 0:03:02.8]} 3... c5 {[%clk 0:03:02.8]}
4. Nf3 {[%clk 0:02:58.9]} 4... e6 {[%clk 0:03:03.7]} 5. c3 {[%clk 0:02:54.2]}
5... Ne7 {[%clk 0:03:01.8]} 6. Bd3 {[%clk 0:02:53.4]} 6... Nec6 {[%clk
0:03:02.3]} 7. O-O {[%clk 0:02:53.3]} 7... Be7 {[%clk 0:03:02.8]} 8. a3 {[%clk
0:02:49.1]} 8... cxd4 {[%clk 0:02:58.9]} 9. cxd4 {[%clk 0:02:49.5]} 9... O-O
{[%clk 0:03:00.1]} 10. b4 {[%clk 0:02:46.3]} 10... a6 {[%clk 0:03:01]} 11. Nc3
{[%clk 0:02:43.8]} 11... Nd7 {[%clk 0:03:00.1]} 12. Be3 {[%clk 0:02:37.3]} 12...
Re8 {[%clk 0:02:42.5]} 13. Na4 {[%clk 0:02:30.8]} 13... Nf8 {[%clk 0:02:42.8]}
14. Rc1 {[%clk 0:02:29.5]} 14... f5 {[%clk 0:02:26.3]} 15. exf6 {[%clk
0:02:24.1]} 15... Bxf6 {[%clk 0:02:27.4]} 16. Bb1 {[%clk 0:02:13.7]} 16... e5
{[%clk 0:02:25]} 17. dxe5 {[%clk 0:02:14.3]} 17... Nxe5 {[%clk 0:02:25.7]} 18.
Nxe5 {[%clk 0:02:13.5]} 18... Bxe5 {[%clk 0:02:24]} 19. Nb6 {[%clk 0:02:14]}
19... Be6 {[%clk 0:01:40.4]} 20. Nxa8 {[%clk 0:02:13.3]} 20... Qxa8 {[%clk
0:01:32.3]} 21. Ba2 {[%clk 0:02:03.8]} 21... Qd8 {[%clk 0:01:24]} 22. Re1 {[%clk
0:01:58.5]} 22... Qd6 {[%clk 0:00:49.6]} 23. Bc5 {[%clk 0:01:48.3]} 23... Bxh2+
{[%clk 0:00:34.3]} 24. Kh1 {[%clk 0:01:46.9]} 24... Qf4 {[%clk 0:00:35.2]} 25.
g3 {[%clk 0:01:38.1]} 25... Qh6 {[%clk 0:00:32]} 26. Bxd5 {[%clk 0:00:27.4]}
26... Bxg3+ {[%clk 0:00:31.6]} 27. Kg1 {[%clk 0:00:25.4]} 27... Qh2+ {[%clk
0:00:28.6]} 28. Kf1 {[%clk 0:00:25.6]} 28... Qh3+ {[%clk 0:00:28.8]} 29. Bg2
{[%clk 0:00:25.5]} 29... Qf5 {[%clk 0:00:22]} 30. Qf3 {[%clk 0:00:25.3]} 30...
Bf4 {[%clk 0:00:19.3]} 31. Rcd1 {[%clk 0:00:17.5]} 31... Bc4+ {[%clk 0:00:16.1]}
32. Kg1 {[%clk 0:00:18.4]} 32... Ne6 {[%clk 0:00:16.9]} 33. Be3 {[%clk
0:00:18.3]} 33... Rf8 {[%clk 0:00:17.6]} 34. Bh3 {[%clk 0:00:17.1]} 34... Qg6+
{[%clk 0:00:13]} 35. Qg2 {[%clk 0:00:15.7]} 35... Ng5 {[%clk 0:00:14]} 36. Bg4
{[%clk 0:00:10.7]} 36... h5 {[%clk 0:00:12.3]} 37. Bxf4 {[%clk 0:00:11.4]} 37...
Rxf4 {[%clk 0:00:12.8]} 38. Rd8+ {[%clk 0:00:07.7]} 38... Kh7 {[%clk 0:00:13.5]}
39. Bd1 {[%clk 0:00:08.6]} 39... Bb5 {[%clk 0:00:04.8]} 40. Re3 {[%clk
0:00:06.3]} 40... Bc6 {[%clk 0:00:05.6]} 41. f3 {[%clk 0:00:04.7]} 41... Qf6
{[%clk 0:00:02.5]} 42. Rd2 {[%clk 0:00:05.1]} 42... Nxf3+ {[%clk 0:00:02.5]} 43.
Bxf3 {[%clk 0:00:05.9]} 43... Bxf3 {[%clk 0:00:04.1]} 44. Qh3 {[%clk 0:00:02.7]}
44... Bg4 {[%clk 0:00:03.1]} 45. Qf3 {[%clk 0:00:03.5]} 45... Rxf3 {[%clk
0:00:03.9]} 0-1

[Event "*** Titled Tuesday Blitz"]
[Site "Chess.com"]
[Date "2018.07.03"]
[Round "8"]
[White "FairChess_on_YouTube"]
[Black "gmcorrales"]
[Result "1-0"]
[WhiteElo "2923"]
[BlackElo "2675"]
[TimeControl "180+2"]
[EndTime "14:45:03 PDT"]
[Termination "FairChess_on_YouTube won by resignation"]

1. d4 {[%clk 0:03:01.9]} 1... Nf6 {[%clk 0:03:00.4]} 2. Bg5 {[%clk 0:03:02.3]}
2... d5 {[%clk 0:03:00.2]} 3. Nd2 {[%clk 0:03:03.2]} 3... g6 {[%clk 0:03:00.6]}
4. e3 {[%clk 0:03:02.5]} 4... Bg7 {[%clk 0:03:01.6]} 5. c3 {[%clk 0:03:03.1]}
5... O-O {[%clk 0:03:02.8]} 6. Bd3 {[%clk 0:03:03.9]} 6... Re8 {[%clk
0:03:03.1]} 7. f4 {[%clk 0:03:04.5]} 7... c5 {[%clk 0:03:02.4]} 8. Ngf3 {[%clk
0:03:04.7]} 8... Bg4 {[%clk 0:03:03.2]} 9. O-O {[%clk 0:03:04.5]} 9... Nc6
{[%clk 0:03:04.2]} 10. Qe1 {[%clk 0:03:01.7]} 10... Qb6 {[%clk 0:03:03.1]} 11.
Rb1 {[%clk 0:03:01.6]} 11... Bxf3 {[%clk 0:02:52.9]} 12. Nxf3 {[%clk 0:03:02]}
12... Ne4 {[%clk 0:02:53.1]} 13. Kh1 {[%clk 0:02:49.5]} 13... f5 {[%clk
0:02:51]} 14. Qh4 {[%clk 0:02:43.7]} 14... e6 {[%clk 0:02:43.8]} 15. Bh6 {[%clk
0:02:36.4]} 15... Qd8 {[%clk 0:02:43.5]} 16. Qh3 {[%clk 0:02:31.2]} 16... Bf6
{[%clk 0:02:37]} 17. g4 {[%clk 0:02:25.5]} 17... Rc8 {[%clk 0:02:25.7]} 18. Rbe1
{[%clk 0:02:21]} 18... Kh8 {[%clk 0:02:24.7]} 19. Re2 {[%clk 0:02:21.3]} 19...
cxd4 {[%clk 0:02:21]} 20. exd4 {[%clk 0:02:18.6]} 20... Rc7 {[%clk 0:02:11.1]}
21. Rg2 {[%clk 0:02:18.8]} 21... Rg8 {[%clk 0:02:10.4]} 22. Ne5 {[%clk
0:02:13.5]} 22... Nxe5 {[%clk 0:02:09.5]} 23. fxe5 {[%clk 0:02:13.9]} 23... Be7
{[%clk 0:00:31.6]} 24. gxf5 {[%clk 0:01:32.6]} 24... exf5 {[%clk 0:00:33.5]} 25.
Qf3 {[%clk 0:01:18.6]} 25... Bf8 {[%clk 0:00:27.7]} 26. Bf4 {[%clk 0:01:13.8]}
26... Rcg7 {[%clk 0:00:25.7]} 27. Bc1 {[%clk 0:01:07.2]} 27... Be7 {[%clk
0:00:14.3]} 28. c4 {[%clk 0:00:58.7]} 28... dxc4 {[%clk 0:00:12.6]} 29. Bxe4
{[%clk 0:00:59.6]} 29... fxe4 {[%clk 0:00:13.2]} 30. Qxe4 {[%clk 0:01:01.5]}
30... Re8 {[%clk 0:00:10]} 31. Bh6 {[%clk 0:00:59.5]} 31... Rgg8 {[%clk
0:00:10.8]} 32. Rf7 {[%clk 0:01:00.2]} 32... Bf8 {[%clk 0:00:08.3]} 33. Bg5
{[%clk 0:00:47.9]} 33... Be7 {[%clk 0:00:08]} 34. Qxb7 {[%clk 0:00:46.9]} 34...
Rg7 {[%clk 0:00:08.2]} 35. Rxg7 {[%clk 0:00:34.9]} 35... Kxg7 {[%clk 0:00:10.1]}
36. d5 {[%clk 0:00:25.5]} 36... Qa5 {[%clk 0:00:08.6]} 37. d6 {[%clk 0:00:20.7]}
37... Kg8 {[%clk 0:00:02.8]} 38. Bxe7 {[%clk 0:00:18.4]} 38... Qxe5 {[%clk
0:00:04]} 39. Qc6 {[%clk 0:00:14.3]} 39... Rb8 {[%clk 0:00:03.9]} 40. Qxc4+
{[%clk 0:00:15.3]} 40... Kg7 {[%clk 0:00:04.7]} 41. Qc3 {[%clk 0:00:14.8]} 41...
Qxc3 {[%clk 0:00:05.6]} 42. bxc3 {[%clk 0:00:16.7]} 42... Kf7 {[%clk 0:00:07.4]}
43. Rd2 {[%clk 0:00:14.3]} 43... Ke6 {[%clk 0:00:08.7]} 44. Kg2 {[%clk
0:00:15.5]} 44... Kd7 {[%clk 0:00:10.1]} 45. Kf3 {[%clk 0:00:16.5]} 45... Rb5
{[%clk 0:00:11.2]} 46. c4 {[%clk 0:00:17.4]} 46... Rh5 {[%clk 0:00:11.5]} 47.
Rb2 {[%clk 0:00:17.1]} 47... Rh3+ {[%clk 0:00:12.5]} 48. Kg4 {[%clk 0:00:17.4]}
48... Rd3 {[%clk 0:00:13.1]} 49. Rb7+ {[%clk 0:00:18.2]} 49... Ke6 {[%clk
0:00:14.5]} 50. c5 {[%clk 0:00:19]} 50... h6 {[%clk 0:00:15.1]} 51. c6 {[%clk
0:00:18.8]} 51... Rc3 {[%clk 0:00:15.1]} 52. c7 {[%clk 0:00:18.5]} 52... Kd7
{[%clk 0:00:14.9]} 53. Rb8 {[%clk 0:00:19.3]} 1-0

[Event "*** Titled Tuesday Blitz"]
[Site "Chess.com"]
[Date "2018.07.03"]
[Round "8"]
[White "GameOverBro"]
[Black "EndgameGrinder"]
[Result "1/2-1/2"]
[WhiteElo "2439"]
[BlackElo "2457"]
[TimeControl "180+2"]
[EndTime "14:45:07 PDT"]
[Termination "Game drawn by agreement"]

1. e4 {[%clk 0:03:01.9]} 1... c5 {[%clk 0:03:01]} 2. Ne2 {[%clk 0:03:02.6]} 2...
Nc6 {[%clk 0:03:00]} 3. Nbc3 {[%clk 0:03:03.3]} 3... e6 {[%clk 0:02:58.4]} 4. d4
{[%clk 0:03:03.7]} 4... cxd4 {[%clk 0:02:59.1]} 5. Nxd4 {[%clk 0:03:05.6]} 5...
Qc7 {[%clk 0:03:00.8]} 6. g3 {[%clk 0:03:05.9]} 6... a6 {[%clk 0:03:01.7]} 7.
Bg2 {[%clk 0:03:06.6]} 7... d6 {[%clk 0:03:03.3]} 8. O-O {[%clk 0:03:06.4]} 8...
Bd7 {[%clk 0:03:04.4]} 9. Nce2 {[%clk 0:03:05.8]} 9... Nf6 {[%clk 0:03:00.1]}
10. b3 {[%clk 0:03:05.9]} 10... Be7 {[%clk 0:02:58.5]} 11. c4 {[%clk 0:03:06.8]}
11... O-O {[%clk 0:02:58]} 12. Bb2 {[%clk 0:03:06.1]} 12... Rac8 {[%clk
0:02:57.6]} 13. Rc1 {[%clk 0:03:06.9]} 13... Qa5 {[%clk 0:02:56.2]} 14. Bc3
{[%clk 0:02:57.3]} 14... Qh5 {[%clk 0:02:49.7]} 15. f3 {[%clk 0:02:37.7]} 15...
d5 {[%clk 0:02:04]} 16. exd5 {[%clk 0:02:18]} 16... exd5 {[%clk 0:02:05.9]} 17.
Nf4 {[%clk 0:02:18.7]} 17... Qg5 {[%clk 0:02:04.9]} 18. Nxd5 {[%clk 0:01:25.2]}
18... Nxd5 {[%clk 0:02:01.2]} 19. cxd5 {[%clk 0:01:19.7]} 19... Qxd5 {[%clk
0:01:16.6]} 20. f4 {[%clk 0:01:06.9]} 20... Qc5 {[%clk 0:01:09.5]} 21. Kh1
{[%clk 0:01:07.4]} 21... Rfd8 {[%clk 0:01:05.6]} 22. Nxc6 {[%clk 0:00:56.9]}
22... Bxc6 {[%clk 0:01:07.5]} 23. Qg4 {[%clk 0:00:55.1]} 23... Bxg2+ {[%clk
0:00:41.7]} 24. Kxg2 {[%clk 0:00:57]} 24... Qd5+ {[%clk 0:00:41.7]} 25. Kh3
{[%clk 0:00:48.5]} 25... Bf8 {[%clk 0:00:39.8]} 26. Bxg7 {[%clk 0:00:46.3]}
26... f5 {[%clk 0:00:40.8]} 27. Qg5 {[%clk 0:00:26]} 27... Bxg7 {[%clk
0:00:41.6]} 28. Rfd1 {[%clk 0:00:21]} 28... Rxc1 {[%clk 0:00:38.7]} 29. Rxd5
{[%clk 0:00:21.2]} 29... Rxd5 {[%clk 0:00:40.6]} 30. Qe7 {[%clk 0:00:22.3]}
30... Rc6 {[%clk 0:00:14]} 31. Qxb7 {[%clk 0:00:18.8]} 31... Rh6+ {[%clk
0:00:14.4]} 32. Kg2 {[%clk 0:00:20.2]} 32... Rd2+ {[%clk 0:00:14.9]} 33. Kf3
{[%clk 0:00:21.6]} 33... Rhxh2 {[%clk 0:00:14.7]} 34. Qc8+ {[%clk 0:00:20.9]}
34... Bf8 {[%clk 0:00:16]} 35. Qe6+ {[%clk 0:00:22]} 35... Kg7 {[%clk
0:00:17.5]} 36. Qe5+ {[%clk 0:00:22.1]} 36... Kg6 {[%clk 0:00:16.2]} 37. Qe6+
{[%clk 0:00:23.4]} 37... Kg7 {[%clk 0:00:17.6]} 38. Qe5+ {[%clk 0:00:24.8]}
38... Kf7 {[%clk 0:00:12.5]} 39. Qxf5+ {[%clk 0:00:25.1]} 39... Ke8 {[%clk
0:00:14.1]} 40. Qe6+ {[%clk 0:00:25]} 40... Be7 {[%clk 0:00:14.7]} 41. Qc8+
{[%clk 0:00:22.6]} 41... Kf7 {[%clk 0:00:15.7]} 42. Qf5+ {[%clk 0:00:23.5]}
42... Bf6 {[%clk 0:00:16.8]} 43. Qa5 {[%clk 0:00:21.5]} 43... Rdf2+ {[%clk
0:00:17.1]} 44. Kg4 {[%clk 0:00:22.8]} 44... Rd2 {[%clk 0:00:10.1]} 45. Qxa6
{[%clk 0:00:23.3]} 45... h5+ {[%clk 0:00:10.7]} 46. Kf5 {[%clk 0:00:24.5]} 46...
Rd5+ {[%clk 0:00:12]} 47. Ke4 {[%clk 0:00:25.6]} 47... Rhd2 {[%clk 0:00:13.2]}
48. Qb7+ {[%clk 0:00:25.7]} 48... Ke6 {[%clk 0:00:13.6]} 49. Qc6+ {[%clk
0:00:26.4]} 49... Rd6 {[%clk 0:00:12.6]} 50. Qc4+ {[%clk 0:00:27]} 50... Ke7
{[%clk 0:00:13.9]} 51. Qc7+ {[%clk 0:00:25.7]} 51... Ke6 {[%clk 0:00:15.4]} 52.
Qc8+ {[%clk 0:00:26.5]} 52... Ke7 {[%clk 0:00:16.5]} 53. Qc7+ {[%clk 0:00:27.7]}
53... Ke6 {[%clk 0:00:17.8]} 54. Qc8+ {[%clk 0:00:28.8]} 1/2-1/2

[Event "*** Titled Tuesday Blitz"]
[Site "Chess.com"]
[Date "2018.07.03"]
[Round "8"]
[White "CarlssonLudvig"]
[Black "maheswaran26"]
[Result "1-0"]
[WhiteElo "2143"]
[BlackElo "1989"]
[TimeControl "180+2"]
[EndTime "14:45:08 PDT"]
[Termination "CarlssonLudvig won by resignation"]

1. d4 {[%clk 0:03:01.9]} 1... Nf6 {[%clk 0:02:56.9]} 2. Nf3 {[%clk 0:03:00.1]}
2... g6 {[%clk 0:02:55.6]} 3. Nc3 {[%clk 0:02:56.4]} 3... Bg7 {[%clk 0:02:54.7]}
4. e4 {[%clk 0:02:56.9]} 4... O-O {[%clk 0:02:52.3]} 5. e5 {[%clk 0:02:56.9]}
5... Ne8 {[%clk 0:02:51.4]} 6. Be2 {[%clk 0:02:55.6]} 6... d6 {[%clk 0:02:50.2]}
7. Bf4 {[%clk 0:02:50.6]} 7... Nc6 {[%clk 0:02:36.1]} 8. exd6 {[%clk 0:02:39.7]}
8... cxd6 {[%clk 0:02:14.7]} 9. O-O {[%clk 0:02:37.6]} 9... Bg4 {[%clk
0:02:07.6]} 10. Be3 {[%clk 0:02:32.4]} 10... Rc8 {[%clk 0:02:03.9]} 11. h3
{[%clk 0:02:30.1]} 11... Bf5 {[%clk 0:01:54.4]} 12. Bd3 {[%clk 0:02:27.5]} 12...
Bxd3 {[%clk 0:01:51.5]} 13. Qxd3 {[%clk 0:02:29]} 13... a6 {[%clk 0:01:06.9]}
14. a3 {[%clk 0:02:18.3]} 14... d5 {[%clk 0:01:05.2]} 15. Ne2 {[%clk 0:02:15.8]}
15... Nd6 {[%clk 0:01:02.1]} 16. Rad1 {[%clk 0:02:12.2]} 16... e6 {[%clk
0:00:56.8]} 17. Bc1 {[%clk 0:02:10.2]} 17... Ne4 {[%clk 0:00:52.8]} 18. Ng3
{[%clk 0:02:06.5]} 18... Nxg3 {[%clk 0:00:51.7]} 19. fxg3 {[%clk 0:02:08.4]}
19... b5 {[%clk 0:00:48.5]} 20. c3 {[%clk 0:02:06.9]} 20... Qb6 {[%clk
0:00:47.5]} 21. Kh2 {[%clk 0:02:07.1]} 21... a5 {[%clk 0:00:47.9]} 22. b4 {[%clk
0:02:00.3]} 22... axb4 {[%clk 0:00:44.3]} 23. axb4 {[%clk 0:02:02.2]} 23... Ne7
{[%clk 0:00:36.6]} 24. Bd2 {[%clk 0:01:58.9]} 24... Nf5 {[%clk 0:00:36.6]} 25.
g4 {[%clk 0:01:53.9]} 25... Nd6 {[%clk 0:00:37.1]} 26. Bf4 {[%clk 0:01:47.9]}
26... Ne4 {[%clk 0:00:37.2]} 27. Rc1 {[%clk 0:01:46.3]} 27... Rc6 {[%clk
0:00:27.1]} 28. Ne5 {[%clk 0:01:46.9]} 28... Rc7 {[%clk 0:00:27.4]} 29. Nf3
{[%clk 0:01:45.1]} 29... Rc6 {[%clk 0:00:26]} 30. Ne5 {[%clk 0:01:46]} 30... Rc7
{[%clk 0:00:26.5]} 31. h4 {[%clk 0:01:43.8]} 31... Rfc8 {[%clk 0:00:26.3]} 32.
Bd2 {[%clk 0:01:38.7]} 32... f6 {[%clk 0:00:21]} 33. Nf3 {[%clk 0:01:38.1]}
33... Qd6+ {[%clk 0:00:20.9]} 34. Kg1 {[%clk 0:01:33]} 34... Qg3 {[%clk
0:00:20]} 35. Be1 {[%clk 0:01:11.9]} 35... Qxg4 {[%clk 0:00:17.9]} 36. Qxb5
{[%clk 0:01:11.7]} 36... Nxc3 {[%clk 0:00:12.5]} 37. Bxc3 {[%clk 0:01:12.3]}
37... Rxc3 {[%clk 0:00:13]} 38. Rxc3 {[%clk 0:01:14.2]} 38... Rxc3 {[%clk
0:00:13.4]} 39. Qe8+ {[%clk 0:01:04.2]} 39... Bf8 {[%clk 0:00:13.7]} 40. b5
{[%clk 0:00:59.9]} 40... Rb3 {[%clk 0:00:08.5]} 41. Qc6 {[%clk 0:00:35.8]} 41...
Rb2 {[%clk 0:00:07.8]} 42. Rf2 {[%clk 0:00:34.1]} 42... Rxf2 {[%clk 0:00:07]}
43. Kxf2 {[%clk 0:00:36]} 43... e5 {[%clk 0:00:05.1]} 44. Qxd5+ {[%clk
0:00:35.9]} 44... Kg7 {[%clk 0:00:04.8]} 45. dxe5 {[%clk 0:00:36.7]} 45... fxe5
{[%clk 0:00:04.1]} 46. Qxe5+ {[%clk 0:00:37.3]} 46... Kg8 {[%clk 0:00:04.2]} 47.
Qd5+ {[%clk 0:00:37.1]} 47... Kg7 {[%clk 0:00:04.3]} 48. Qd4+ {[%clk 0:00:38.5]}
48... Qxd4+ {[%clk 0:00:04.6]} 49. Nxd4 {[%clk 0:00:40.4]} 49... Bc5 {[%clk
0:00:05.6]} 50. Ke3 {[%clk 0:00:41.6]} 50... Kf6 {[%clk 0:00:06.7]} 51. Ke4
{[%clk 0:00:43.1]} 51... g5 {[%clk 0:00:07]} 52. hxg5+ {[%clk 0:00:43.5]} 52...
Kxg5 {[%clk 0:00:07.8]} 53. Ne6+ {[%clk 0:00:44.7]} 53... Kf6 {[%clk 0:00:08.3]}
54. Nxc5 {[%clk 0:00:46.6]} 1-0

[Event "*** Titled Tuesday Blitz"]
[Site "Chess.com"]
[Date "2018.07.03"]
[Round "8"]
[White "volodja49"]
[Black "gmjlh"]
[Result "1/2-1/2"]
[WhiteElo "2489"]
[BlackElo "2650"]
[TimeControl "180+2"]
[EndTime "14:45:19 PDT"]
[Termination "Game drawn by repetition"]

1. d4 {[%clk 0:03:01.9]} 1... Nf6 {[%clk 0:03:00]} 2. c4 {[%clk 0:03:02.6]} 2...
e6 {[%clk 0:02:58.6]} 3. Nf3 {[%clk 0:03:03.6]} 3... d5 {[%clk 0:02:58.9]} 4.
cxd5 {[%clk 0:03:03.3]} 4... exd5 {[%clk 0:02:59.5]} 5. Nc3 {[%clk 0:03:04.5]}
5... c6 {[%clk 0:03:00.1]} 6. Bg5 {[%clk 0:03:05.2]} 6... Bf5 {[%clk 0:02:55.9]}
7. e3 {[%clk 0:02:55.9]} 7... Nbd7 {[%clk 0:02:51.4]} 8. Bd3 {[%clk 0:02:55.8]}
8... Bxd3 {[%clk 0:02:51.5]} 9. Qxd3 {[%clk 0:02:57.7]} 9... Be7 {[%clk
0:02:45.1]} 10. O-O {[%clk 0:02:58]} 10... O-O {[%clk 0:02:46.1]} 11. Rab1
{[%clk 0:02:52.9]} 11... Ne4 {[%clk 0:02:23]} 12. Bxe7 {[%clk 0:02:42.2]} 12...
Qxe7 {[%clk 0:02:24.9]} 13. Qc2 {[%clk 0:02:40.9]} 13... Nd6 {[%clk 0:02:05.5]}
14. Na4 {[%clk 0:02:12]} 14... a5 {[%clk 0:01:54.3]} 15. b3 {[%clk 0:02:07.5]}
15... Nb5 {[%clk 0:01:38.2]} 16. Rbc1 {[%clk 0:02:06.9]} 16... Rfe8 {[%clk
0:01:32.9]} 17. Rfd1 {[%clk 0:02:03.1]} 17... Qa3 {[%clk 0:01:24]} 18. Ng5
{[%clk 0:01:46.2]} 18... g6 {[%clk 0:01:24.5]} 19. h4 {[%clk 0:01:34.9]} 19...
Qe7 {[%clk 0:01:22]} 20. Nf3 {[%clk 0:01:35.3]} 20... Kg7 {[%clk 0:00:59.1]} 21.
Nc3 {[%clk 0:01:33.7]} 21... Nxc3 {[%clk 0:00:56]} 22. Qxc3 {[%clk 0:01:35.6]}
22... Qb4 {[%clk 0:00:55.6]} 23. Qc2 {[%clk 0:01:29.8]} 23... a4 {[%clk
0:00:53.7]} 24. Rb1 {[%clk 0:01:30.7]} 24... a3 {[%clk 0:00:42.6]} 25. Rbc1
{[%clk 0:01:23.7]} 25... Re4 {[%clk 0:00:41.7]} 26. Qc3 {[%clk 0:01:18.3]} 26...
Qxc3 {[%clk 0:00:38.6]} 27. Rxc3 {[%clk 0:01:18.7]} 27... Nb8 {[%clk 0:00:39.2]}
28. b4 {[%clk 0:01:14.6]} 28... Ra4 {[%clk 0:00:37.1]} 29. Rb1 {[%clk
0:01:12.5]} 29... Na6 {[%clk 0:00:33.7]} 30. Rcb3 {[%clk 0:01:00.3]} 30... Nc7
{[%clk 0:00:33.9]} 31. g3 {[%clk 0:00:57.9]} 31... Nb5 {[%clk 0:00:34.7]} 32.
Nd2 {[%clk 0:00:41.9]} 32... Re7 {[%clk 0:00:34.8]} 33. Rc1 {[%clk 0:00:43.4]}
33... h6 {[%clk 0:00:33.3]} 34. Nb1 {[%clk 0:00:44.3]} 34... Re8 {[%clk
0:00:16.5]} 35. Nc3 {[%clk 0:00:44.7]} 35... Nxc3 {[%clk 0:00:17.2]} 36. Rcxc3
{[%clk 0:00:46.6]} 36... Rea8 {[%clk 0:00:17.2]} 37. b5 {[%clk 0:00:47.6]} 37...
Rc4 {[%clk 0:00:03.5]} 38. bxc6 {[%clk 0:00:26.7]} 38... bxc6 {[%clk 0:00:05.4]}
39. Rxa3 {[%clk 0:00:25.1]} 39... Rxa3 {[%clk 0:00:05.4]} 40. Rxa3 {[%clk
0:00:25.3]} 40... Rc2 {[%clk 0:00:05.1]} 41. Kg2 {[%clk 0:00:24.9]} 41... g5
{[%clk 0:00:04.9]} 42. h5 {[%clk 0:00:24.9]} 42... g4 {[%clk 0:00:05.6]} 43. Ra7
{[%clk 0:00:24.2]} 43... Kf6 {[%clk 0:00:05.9]} 44. a4 {[%clk 0:00:24.5]} 44...
Ra2 {[%clk 0:00:04.6]} 45. a5 {[%clk 0:00:25.1]} 45... Kg5 {[%clk 0:00:04.9]}
46. Rxf7 {[%clk 0:00:11.5]} 46... Rxa5 {[%clk 0:00:05.8]} 47. Rg7+ {[%clk
0:00:11.6]} 47... Kxh5 {[%clk 0:00:06.5]} 48. Kf1 {[%clk 0:00:09.3]} 48... Ra2
{[%clk 0:00:05.3]} 49. Rg8 {[%clk 0:00:09.5]} 49... Rc2 {[%clk 0:00:05.7]} 50.
Kg2 {[%clk 0:00:10.6]} 50... Rb2 {[%clk 0:00:04.9]} 51. Rg7 {[%clk 0:00:11.7]}
51... Rc2 {[%clk 0:00:06]} 52. Rg8 {[%clk 0:00:12.4]} 52... Rb2 {[%clk
0:00:07.4]} 53. Rg7 {[%clk 0:00:12.8]} 53... Rc2 {[%clk 0:00:08.8]} 54. Rg8
{[%clk 0:00:13.4]} 1/2-1/2

[Event "*** Titled Tuesday Blitz"]
[Site "Chess.com"]
[Date "2018.07.03"]
[Round "8"]
[White "GM_dmitrij"]
[Black "rasmussvane"]
[Result "1/2-1/2"]
[WhiteElo "2799"]
[BlackElo "2607"]
[TimeControl "180+2"]
[EndTime "14:45:23 PDT"]
[Termination "Game drawn by stalemate"]

1. e4 {[%clk 0:03:01.9]} 1... c6 {[%clk 0:03:01.2]} 2. d4 {[%clk 0:02:58.5]}
2... d5 {[%clk 0:03:02.7]} 3. e5 {[%clk 0:02:54.7]} 3... Bf5 {[%clk 0:03:03.5]}
4. h4 {[%clk 0:02:54.2]} 4... h5 {[%clk 0:03:04.5]} 5. Bd3 {[%clk 0:02:55.5]}
5... Bxd3 {[%clk 0:03:05.7]} 6. Qxd3 {[%clk 0:02:57.4]} 6... Qa5+ {[%clk
0:03:06.6]} 7. Nd2 {[%clk 0:02:52.5]} 7... e6 {[%clk 0:03:07.7]} 8. Ne2 {[%clk
0:02:50.6]} 8... Qa6 {[%clk 0:03:05.6]} 9. c4 {[%clk 0:02:49.8]} 9... Nh6 {[%clk
0:03:01.4]} 10. b3 {[%clk 0:02:41.8]} 10... Nf5 {[%clk 0:03:02.2]} 11. Nf3
{[%clk 0:02:36.9]} 11... c5 {[%clk 0:02:40]} 12. O-O {[%clk 0:02:24.1]} 12...
Nc6 {[%clk 0:02:36.7]} 13. Rd1 {[%clk 0:01:59.3]} 13... dxc4 {[%clk 0:02:33.7]}
14. bxc4 {[%clk 0:01:51.3]} 14... cxd4 {[%clk 0:02:34.6]} 15. Nexd4 {[%clk
0:01:39.2]} 15... Nfxd4 {[%clk 0:02:24.6]} 16. Nxd4 {[%clk 0:01:39.3]} 16... Rd8
{[%clk 0:02:06.3]} 17. Be3 {[%clk 0:01:30.4]} 17... Bc5 {[%clk 0:01:49.9]} 18.
Qc3 {[%clk 0:01:13.8]} 18... Bxd4 {[%clk 0:01:44.2]} 19. Bxd4 {[%clk 0:01:15.7]}
19... Nxd4 {[%clk 0:01:39.9]} 20. Rxd4 {[%clk 0:01:17.6]} 20... O-O {[%clk
0:01:41.1]} 21. c5 {[%clk 0:01:11.8]} 21... Rxd4 {[%clk 0:01:32.3]} 22. Qxd4
{[%clk 0:01:13.7]} 22... Qa5 {[%clk 0:01:33.8]} 23. Rd1 {[%clk 0:00:40.8]} 23...
Qxa2 {[%clk 0:01:31.5]} 24. Ra1 {[%clk 0:00:40.9]} 24... Qd5 {[%clk 0:00:41.8]}
25. Qxd5 {[%clk 0:00:40.3]} 25... exd5 {[%clk 0:00:43.7]} 26. Rxa7 {[%clk
0:00:41.6]} 26... Rc8 {[%clk 0:00:44.8]} 27. Rxb7 {[%clk 0:00:25.6]} 27... Rxc5
{[%clk 0:00:45.4]} 28. Kf1 {[%clk 0:00:26.7]} 28... Kf8 {[%clk 0:00:37.2]} 29.
Ke2 {[%clk 0:00:25.8]} 29... Rc4 {[%clk 0:00:38.1]} 30. Rd7 {[%clk 0:00:08.1]}
30... Re4+ {[%clk 0:00:35.9]} 31. Kf3 {[%clk 0:00:09.6]} 31... Rxe5 {[%clk
0:00:36.1]} 32. Kf4 {[%clk 0:00:11.2]} 32... f6 {[%clk 0:00:35.1]} 33. f3 {[%clk
0:00:10.7]} 33... Kg8 {[%clk 0:00:35.7]} 34. g4 {[%clk 0:00:10.5]} 34... Kh7
{[%clk 0:00:29.6]} 35. g5 {[%clk 0:00:06.8]} 35... Kg6 {[%clk 0:00:29.7]} 36.
gxf6 {[%clk 0:00:08.2]} 36... gxf6 {[%clk 0:00:30.9]} 37. Rc7 {[%clk 0:00:08.1]}
37... Re1 {[%clk 0:00:28.6]} 38. Rd7 {[%clk 0:00:08.8]} 38... Rd1 {[%clk
0:00:29.6]} 39. Rc7 {[%clk 0:00:09.1]} 39... Rd4+ {[%clk 0:00:30.4]} 40. Kg3
{[%clk 0:00:08.7]} 40... Rd1 {[%clk 0:00:24]} 41. Rd7 {[%clk 0:00:08.9]} 41...
d4 {[%clk 0:00:25.1]} 42. Kf4 {[%clk 0:00:09.7]} 42... d3 {[%clk 0:00:25.6]} 43.
Ke3 {[%clk 0:00:09.1]} 43... Re1+ {[%clk 0:00:24.1]} 44. Kf4 {[%clk 0:00:09.5]}
44... Rd1 {[%clk 0:00:23.7]} 45. Ke3 {[%clk 0:00:10.6]} 45... Rh1 {[%clk
0:00:21.4]} 46. Rd4 {[%clk 0:00:11.6]} 46... Kf5 {[%clk 0:00:15.3]} 47. Rf4+
{[%clk 0:00:09]} 47... Ke5 {[%clk 0:00:11.4]} 48. Re4+ {[%clk 0:00:10.3]} 48...
Kf5 {[%clk 0:00:12.5]} 49. Rf4+ {[%clk 0:00:11.5]} 49... Ke5 {[%clk 0:00:12.8]}
50. Re4+ {[%clk 0:00:12.9]} 50... Kd5 {[%clk 0:00:13.3]} 51. Kxd3 {[%clk
0:00:12.9]} 51... f5 {[%clk 0:00:14.6]} 52. Ra4 {[%clk 0:00:12.8]} 52... Ke5
{[%clk 0:00:15.6]} 53. Ke3 {[%clk 0:00:13.3]} 53... f4+ {[%clk 0:00:16.6]} 54.
Rxf4 {[%clk 0:00:10.6]} 54... Re1+ {[%clk 0:00:17.5]} 55. Kf2 {[%clk 0:00:12.1]}
55... Kxf4 {[%clk 0:00:18.8]} 56. Kxe1 {[%clk 0:00:13.6]} 56... Kxf3 {[%clk
0:00:20.2]} 57. Kf1 {[%clk 0:00:15.2]} 57... Kg3 {[%clk 0:00:21.5]} 58. Kg1
{[%clk 0:00:16.4]} 58... Kxh4 {[%clk 0:00:23]} 59. Kh2 {[%clk 0:00:17.9]} 59...
Kg4 {[%clk 0:00:24.2]} 60. Kg2 {[%clk 0:00:19.5]} 60... h4 {[%clk 0:00:25.7]}
61. Kh2 {[%clk 0:00:21.1]} 61... h3 {[%clk 0:00:27.3]} 62. Kh1 {[%clk
0:00:22.7]} 62... Kg3 {[%clk 0:00:29]} 63. Kg1 {[%clk 0:00:24.3]} 63... h2+
{[%clk 0:00:30.6]} 64. Kh1 {[%clk 0:00:26.2]} 64... Kh3 {[%clk 0:00:32.1]}
1/2-1/2